bitfinex-derivatives/quotes_BTCF0:USTF0_20250528
["timestamp","ask_amount","ask_price","bid_price","bid_amount"]
[1748446525953,1.94687796,107380.0,107370.0,0.28211639]
[1748446526154,1.94687796,107380.0,107370.0,0.46832339]
[1748446526355,1.94687796,107380.0,107370.0,0.29667172]
[1748446526551,1.94687796,107380.0,107370.0,0.497434]
[1748446527155,1.94687796,107380.0,107370.0,0.57114624]
[1748446527549,1.56378374,107380.0,107370.0,0.61790154]
[1748446527859,1.53847598,107380.0,107370.0,0.6324568]
[1748446528155,0.99123598,107380.0,107370.0,0.67941196]
[1748446528352,1.43183598,107380.0,107370.0,0.67941206]
[1748446528550,1.3742502,107380.0,107370.0,0.67941206]
[1748446528751,1.3742502,107380.0,107370.0,0.679517]
[1748446528957,1.3742502,107380.0,107370.0,0.63480953]
[1748446529153,1.3742502,107380.0,107370.0,0.66974883]
[1748446529353,1.33100515,107380.0,107370.0,1.29149368]
[1748446529656,1.33100515,107380.0,107370.0,1.30317339]
[1748446530252,0.89040515,107380.0,107370.0,1.30317339]
[1748446530447,1.33100515,107380.0,107370.0,1.30317339]
[1748446530644,1.5246078,107380.0,107370.0,1.30317339]
[1748446531147,1.1946078,107380.0,107370.0,1.30317339]
[1748446531347,1.03100515,107380.0,107370.0,1.30317339]
[1748446531548,1.2246078,107380.0,107370.0,1.30317339]
[1748446532357,1.2246078,107380.0,107370.0,1.24678245]
[1748446532972,1.2246078,107380.0,107370.0,1.23510229]
[1748446533455,0.7840078,107380.0,107370.0,1.23510229]
[1748446533662,1.21092515,107380.0,107370.0,1.23510229]
[1748446533852,1.4045278,107380.0,107370.0,1.23510229]
[1748446534053,1.4045278,107380.0,107370.0,1.24510229]
[1748446534254,1.4045278,107380.0,107370.0,1.43870494]
[1748446534255,0.56096829,107380.0,107370.0,1.43870494]
[1748446534556,0.93432515,107380.0,107370.0,1.44620875]
[1748446534759,0.93432515,107380.0,107370.0,1.2626061]
[1748446534959,0.99962515,107380.0,107370.0,1.28876651]
[1748446535161,0.49380515,107380.0,107370.0,1.2626061]
[1748446535362,0.52720515,107380.0,107370.0,1.26271177]
[1748446535564,0.55610515,107380.0,107370.0,1.26271177]
[1748446535860,0.55710515,107380.0,107370.0,1.26271177]
[1748446536851,0.56710515,107380.0,107370.0,1.26271177]
[1748446537058,0.56510515,107380.0,107370.0,1.26271177]
[1748446537362,0.56610515,107380.0,107370.0,1.26271177]
[1748446538365,0.56610515,107380.0,107370.0,1.29773198]
[1748446539061,0.26800515,107380.0,107370.0,1.29773198]
[1748446539654,0.4616078,107380.0,107370.0,1.29773198]
[1748446539862,0.4616078,107380.0,107370.0,1.29761198]
[1748446540056,0.4297078,107380.0,107370.0,1.29761198]
[1748446540258,0.67650515,107380.0,107370.0,1.29761198]
[1748446540454,0.67650515,107380.0,107370.0,1.36869822]
[1748446540654,0.67650515,107380.0,107370.0,1.36881822]
[1748446541168,0.70970515,107380.0,107370.0,1.36881822]
[1748446541367,0.9033078,107380.0,107370.0,1.26533198]
[1748446541556,1.1865078,107380.0,107370.0,0.87824327]
[1748446541865,1.1865078,107380.0,107370.0,0.87812327]
[1748446542165,1.1865078,107380.0,107370.0,0.87824327]
[1748446542557,1.17533065,107380.0,107370.0,0.8927972]
[1748446542956,1.83423065,107380.0,107370.0,0.67439175]
[1748446543152,1.83423065,107380.0,107370.0,0.57931717]
[1748446543358,1.8820836,107380.0,107370.0,0.56464269]
[1748446543562,1.8820836,107380.0,107370.0,0.56476269]
[1748446543865,1.93966938,107380.0,107370.0,0.56476269]
[1748446544668,1.93966938,107380.0,107370.0,0.59666269]
[1748446545073,1.93966938,107380.0,107370.0,0.78666269]
[1748446545870,1.8820836,107380.0,107370.0,0.78666269]
[1748446546959,1.93966938,107380.0,107370.0,0.78666269]
[1748446547166,1.93966938,107380.0,107370.0,0.84590615]
[1748446547368,1.8820836,107380.0,107370.0,0.84590615]
[1748446547562,1.93968146,107380.0,107370.0,0.84590615]
[1748446547770,1.52117568,107380.0,107370.0,0.84590615]
[1748446547971,1.88197568,107380.0,107370.0,0.84590615]
[1748446548572,1.44169568,107380.0,107370.0,0.84590615]
[1748446548759,1.88197568,107380.0,107370.0,0.84590615]
[1748446549169,1.93956146,107380.0,107370.0,0.84590615]
[1748446549770,1.74595881,107380.0,107370.0,0.84590615]
[1748446549970,1.93956146,107380.0,107370.0,0.66590615]
[1748446550559,1.93952146,107380.0,107370.0,0.58590615]
[1748446551570,1.88193568,107380.0,107370.0,0.52666269]
[1748446552063,1.88193568,107380.0,107370.0,0.58591464]
[1748446552569,1.88193214,107380.0,107370.0,0.58591464]
[1748446552765,1.88193214,107380.0,107370.0,0.36780794]
[1748446552969,2.18197479,107380.0,107370.0,0.36780794]
[1748446553270,2.08908633,107380.0,107370.0,0.36780794]
[1748446553475,2.03150055,107380.0,107370.0,0.36768794]
[1748446553768,2.03150055,107380.0,107370.0,0.36780794]
[1748446554972,1.8378979,107380.0,107370.0,0.36780794]
[1748446555273,1.34894832,107380.0,107370.0,0.36780794]
[1748446555466,1.54255097,107380.0,107370.0,0.58661464]
[1748446555661,2.00271662,107380.0,107370.0,0.58661464]
[1748446555974,2.0460135,107380.0,107370.0,0.40040794]
[1748446556170,1.85241085,107380.0,107370.0,0.58661464]
[1748446556467,1.6058135,107380.0,107370.0,0.58661464]
[1748446556671,1.4661735,107380.0,107370.0,0.58661464]
[1748446556871,1.1680735,107380.0,107370.0,0.61971464]
[1748446557068,1.6082735,107380.0,107370.0,0.61971464]
[1748446557274,1.55054308,107380.0,107370.0,0.56046269]
[1748446558871,1.55050308,107380.0,107370.0,0.56046269]
[1748446559168,0.74954308,107380.0,107370.0,0.85046269]
[1748446559368,1.18970308,107380.0,107370.0,0.85046269]
[1748446561072,1.18970308,107380.0,107370.0,0.86046269]
[1748446561073,1.1564062,107380.0,107370.0,0.86046269]
[1748446563769,1.1564062,107380.0,107370.0,0.88957055]
[1748446563969,1.1564062,107380.0,107370.0,0.90412449]
[1748446564182,1.1564062,107380.0,107370.0,0.88957055]
[1748446565274,1.1564062,107380.0,107370.0,0.90412448]
[1748446565578,1.1564062,107380.0,107370.0,0.90412449]
[1748446565885,1.1564062,107380.0,107370.0,0.90412448]
[1748446566069,1.5172062,107380.0,107370.0,0.88957055]
[1748446566376,1.1997167,107380.0,107370.0,0.88957055]
[1748446566574,1.1997167,107380.0,107370.0,0.9041245]
[1748446566775,1.1997167,107380.0,107370.0,0.88957055]
[1748446567280,1.1997167,107380.0,107370.0,0.90412424]
[1748446567479,1.1997167,107380.0,107370.0,0.88957055]
[1748446567967,0.93614485,107380.0,107370.0,1.0731732]
[1748446568173,0.93614485,107380.0,107370.0,1.46492405]
[1748446568373,0.49610485,107380.0,107370.0,1.46492405]
[1748446568574,0.74995555,107380.0,107370.0,1.55249272]
[1748446568877,0.93614485,107380.0,107370.0,1.53793954]
[1748446569281,0.49610485,107380.0,107370.0,1.33793954]
[1748446569473,0.49610485,107380.0,107370.0,1.35249271]
[1748446569669,0.6897075,107380.0,107370.0,1.35249271]
[1748446569874,1.1297075,107380.0,107370.0,1.56249269]
[1748446570374,1.1297075,107380.0,107370.0,1.54793954]
[1748446570582,1.1297075,107380.0,107370.0,1.34249269]
[1748446570977,1.1297075,107380.0,107370.0,1.38896412]
[1748446571479,1.1297075,107380.0,107370.0,1.29994391]
[1748446571775,1.1297075,107380.0,107370.0,1.28539076]
[1748446571982,1.1297075,107380.0,107370.0,1.29994395]
[1748446572380,1.1297075,107380.0,107370.0,1.29994394]
[1748446572577,1.1297075,107380.0,107370.0,1.29994395]
[1748446572880,0.6897075,107380.0,107370.0,1.29994395]
[1748446573078,1.1296675,107380.0,107370.0,1.29994395]
[1748446573280,1.1296675,107380.0,107370.0,1.2999439]
[1748446573869,1.1296675,107380.0,107370.0,1.28539076]
[1748446574069,1.1296675,107380.0,107370.0,1.29994379]
[1748446574472,1.1296675,107380.0,107370.0,1.28539076]
[1748446574668,1.1296675,107380.0,107370.0,1.29994379]
[1748446575785,0.93606485,107380.0,107370.0,1.29994379]
[1748446575980,0.93606485,107380.0,107370.0,1.35922173]
[1748446575981,1.1296675,107380.0,107370.0,1.35922173]
[1748446576176,0.46270485,107380.0,107370.0,1.3446687]
[1748446576388,0.90258485,107380.0,107370.0,1.3446687]
[1748446576582,0.93448485,107380.0,107370.0,1.3446687]
[1748446576789,0.74829555,107380.0,107370.0,1.29994379]
[1748446576980,0.93448485,107380.0,107370.0,1.29994378]
[1748446577180,0.93448485,107380.0,107370.0,1.35922172]
[1748446577375,0.93448485,107380.0,107370.0,1.34666011]
[1748446577580,0.93448485,107380.0,107370.0,1.39920889]
[1748446577782,0.93448485,107380.0,107370.0,1.4137619]
[1748446577985,0.93448485,107380.0,107370.0,1.48489752]
[1748446578301,0.93448485,107380.0,107370.0,1.47034243]
[1748446578598,0.93448485,107380.0,107370.0,1.48489544]
[1748446578794,0.93448485,107380.0,107370.0,1.49536351]
[1748446578997,0.49023895,107380.0,107370.0,1.49536351]
[1748446579192,0.49023895,107380.0,107370.0,1.46320227]
[1748446579497,0.30404965,107380.0,107370.0,1.50991445]
[1748446579701,0.49023895,107380.0,107370.0,1.50991445]
[1748446579994,0.49023895,107380.0,107370.0,1.43877883]
[1748446580192,0.7149416,107380.0,107370.0,1.43877883]
[1748446580398,0.7149416,107380.0,107370.0,1.42831124]
[1748446580591,0.7149416,107380.0,107370.0,1.45327024]
[1748446581094,0.7149416,107380.0,107370.0,1.42831124]
[1748446581399,1.0757416,107380.0,107370.0,1.09246331]
[1748446581693,1.55890657,107380.0,107370.0,0.72030259]
[1748446581892,1.64763699,107380.0,107370.0,0.60236354]
[1748446582598,1.01886937,107380.0,107370.0,0.84248335]
[1748446582796,0.9685523,107380.0,107370.0,0.94120356]
[1748446582996,1.1547416,107380.0,107370.0,1.30199161]
[1748446583391,0.7149416,107380.0,107370.0,1.30199161]
[1748446583702,0.9685523,107380.0,107370.0,1.30199161]
[1748446583890,1.1547416,107380.0,107370.0,1.37309802]
[1748446584291,1.1547416,107380.0,107370.0,1.37310015]
[1748446584491,0.52133895,107380.0,107370.0,1.37310015]
[1748446584688,1.1547016,107380.0,107370.0,1.34815613]
[1748446584887,1.1547016,107380.0,107370.0,1.37310251]
[1748446585299,1.1547016,107380.0,107370.0,0.9631583]
[1748446585692,1.1547016,107380.0,107370.0,1.0157081]
[1748446585893,1.19806276,107380.0,107370.0,0.93808919]
[1748446586092,1.19806276,107380.0,107370.0,0.96315933]
[1748446586292,1.19806276,107380.0,107370.0,0.96316027]
[1748446586900,1.19806276,107380.0,107370.0,0.93820919]
[1748446587100,1.19806276,107380.0,107370.0,0.94860697]
[1748446587504,1.00446011,107380.0,107370.0,1.00781425]
[1748446587803,1.1547016,107380.0,107370.0,1.060364]
[1748446588001,0.96109895,107380.0,107370.0,1.060364]
[1748446588198,1.19806276,107380.0,107370.0,1.04996525]
[1748446588405,1.19809933,107380.0,107370.0,0.9932629]
[1748446588604,1.19809933,107380.0,107370.0,1.07491892]
[1748446589006,1.19809933,107380.0,107370.0,1.07491922]
[1748446589205,0.56473668,107380.0,107370.0,1.07491922]
[1748446589403,0.57215003,107380.0,107370.0,1.46881935]
[1748446589606,0.31554738,107380.0,107370.0,1.67697523]
[1748446589807,0.93110539,107380.0,107370.0,1.33054392]
[1748446590106,1.15281024,107380.0,107370.0,1.40052596]
[1748446590408,1.14131251,107380.0,107370.0,1.18121936]
[1748446590596,1.54551024,107380.0,107370.0,0.9109248]
[1748446590801,1.54551024,107380.0,107370.0,0.96053942]
[1748446590997,1.54551024,107380.0,107370.0,0.96041942]
[1748446591303,1.60324066,107380.0,107370.0,0.96053942]
[1748446591706,1.60324066,107380.0,107370.0,0.9923394]
[1748446592005,1.60324066,107380.0,107370.0,0.99232964]
[1748446592308,1.60320066,107380.0,107370.0,0.97777553]
[1748446592507,1.60320066,107380.0,107370.0,0.98210933]
[1748446592708,1.60320066,107380.0,107370.0,0.99233003]
[1748446593098,1.60320066,107380.0,107370.0,0.99232929]
[1748446593299,1.60320744,107380.0,107370.0,0.93575519]
[1748446593500,1.60320744,107380.0,107370.0,0.94597516]
[1748446593702,1.60320744,107380.0,107370.0,0.9605293]
[1748446594406,1.60320744,107380.0,107370.0,0.73525024]
[1748446594615,1.60320744,107380.0,107370.0,0.74547052]
[1748446594906,1.60320744,107380.0,107370.0,0.73091631]
[1748446595211,1.60320744,107380.0,107370.0,0.74546979]
[1748446595212,2.00750744,107380.0,107370.0,0.74546979]
[1748446595412,2.00750744,107380.0,107370.0,0.73079413]
[1748446595605,2.00750744,107380.0,107370.0,0.74546888]
[1748446596211,2.00750744,107380.0,107370.0,0.74546908]
[1748446596402,2.00750744,107380.0,107370.0,0.73091437]
[1748446596603,2.00750744,107380.0,107370.0,0.74546906]
[1748446596808,2.00750744,107380.0,107370.0,0.74546825]
[1748446597008,2.00750744,107380.0,107370.0,0.73525073]
[1748446597212,2.00750744,107380.0,107370.0,0.74546853]
[1748446597412,2.00750744,107380.0,107370.0,0.76002327]
[1748446597610,2.00750744,107380.0,107370.0,0.73091388]
[1748446598105,2.00750744,107380.0,107370.0,0.53448933]
[1748446598307,2.15770558,107380.0,107370.0,0.54904407]
[1748446598514,2.24417993,107380.0,107370.0,0.57381635]
[1748446599005,2.24417993,107380.0,107370.0,0.63297546]
[1748446599202,1.99284686,107380.0,107370.0,0.63309539]
[1748446599406,1.99284686,107380.0,107370.0,0.61841937]
[1748446599607,1.99284686,107380.0,107370.0,0.60834912]
[1748446599816,1.99284686,107380.0,107370.0,0.61853597]
[1748446600119,2.05066364,107380.0,107370.0,0.60834912]
[1748446600307,2.05066364,107380.0,107370.0,0.63309112]
[1748446600703,2.05066364,107380.0,107370.0,0.64326799]
[1748446600914,2.05066364,107380.0,107370.0,0.63308134]
[1748446601218,1.75256364,107380.0,107370.0,0.6229045]
[1748446601610,1.75256364,107380.0,107370.0,0.61852575]
[1748446601816,1.75256364,107380.0,107370.0,0.64763572]
[1748446602212,1.11932099,107380.0,107370.0,0.83384232]
[1748446602414,1.75248364,107380.0,107370.0,0.64763572]
[1748446602614,1.75248364,107380.0,107370.0,0.67025997]
[1748446602815,1.75248364,107380.0,107370.0,0.68043456]
[1748446603012,1.75248364,107380.0,107370.0,0.66587912]
[1748446603210,1.75248364,107380.0,107370.0,0.66587886]
[1748446604210,1.75248364,107380.0,107370.0,0.69498894]
[1748446605020,1.75244364,107380.0,107370.0,0.67025997]
[1748446605321,1.75244364,107380.0,107370.0,0.72758824]
[1748446605916,1.75244364,107380.0,107370.0,0.72758822]
[1748446606218,1.75244364,107380.0,107370.0,0.72758808]
[1748446606819,1.75244364,107380.0,107370.0,0.70285997]
[1748446607012,1.75244364,107380.0,107370.0,0.72758816]
[1748446607612,1.75244364,107380.0,107370.0,0.71741528]
[1748446607908,1.75244364,107380.0,107370.0,0.72758838]
[1748446608422,1.66592929,107380.0,107370.0,0.91379458]
[1748446608813,1.66592929,107380.0,107370.0,0.69498838]
[1748446609014,1.75240364,107380.0,107370.0,0.69498838]
[1748446609215,1.75240364,107380.0,107370.0,0.68043346]
[1748446609529,1.75240364,107380.0,107370.0,0.65023907]
[1748446610021,1.75240364,107380.0,107370.0,0.8364458]
[1748446610223,1.75240364,107380.0,107370.0,0.66888427]
[1748446610417,1.7092799,107380.0,107370.0,0.66888482]
[1748446610614,1.7092799,107380.0,107370.0,0.68343995]
[1748446611024,1.7092799,107380.0,107370.0,0.68343991]
[1748446611208,1.7092799,107380.0,107370.0,0.86964611]
[1748446611407,1.07599725,107380.0,107370.0,0.86964583]
[1748446611719,1.21178312,107380.0,107370.0,1.08964555]
[1748446611918,1.65122312,107380.0,107370.0,1.08964525]
[1748446612219,1.65122312,107380.0,107370.0,1.08964543]
[1748446612614,1.65122312,107380.0,107370.0,1.08964535]
[1748446612829,1.69458335,107380.0,107370.0,1.08964515]
[1748446613012,1.69458335,107380.0,107370.0,1.07609119]
[1748446613323,1.65123274,107380.0,107370.0,1.12364531]
[1748446614019,1.21179274,107380.0,107370.0,1.12364531]
[1748446614224,0.91960344,107380.0,107370.0,1.12364531]
[1748446614418,1.25274321,107380.0,107370.0,1.22989386]
[1748446614618,1.43893201,107380.0,107370.0,1.22989386]
[1748446614812,0.81334321,107380.0,107370.0,1.22989386]
[1748446615017,1.43893201,107380.0,107370.0,1.22989386]
[1748446615313,1.43893201,107380.0,107370.0,1.27645233]
[1748446615622,1.43893201,107380.0,107370.0,1.22989449]
[1748446616524,1.24532936,107380.0,107370.0,1.22989468]
[1748446616825,1.43893201,107380.0,107370.0,1.205165]
[1748446617218,1.43893201,107380.0,107370.0,1.21534132]
[1748446617526,1.47009201,107380.0,107370.0,1.21971873]
[1748446617721,1.50219201,107380.0,107370.0,1.22989505]
[1748446617916,1.50219201,107380.0,107370.0,1.24444878]
[1748446618227,1.50219201,107380.0,107370.0,1.17325889]
[1748446618926,1.50219201,107380.0,107370.0,1.1732589]
[1748446619425,1.50219201,107380.0,107370.0,1.1731389]
[1748446619725,1.54555224,107380.0,107370.0,0.9732593]
[1748446619927,1.54555224,107380.0,107370.0,0.96296347]
[1748446620119,1.54555224,107380.0,107370.0,0.68599505]
[1748446620317,1.87751489,107380.0,107370.0,0.65287542]
[1748446620519,1.93533167,107380.0,107370.0,0.56299542]
[1748446620830,1.78484314,107380.0,107370.0,0.62216143]
[1748446621127,1.78484314,107380.0,107370.0,0.62228207]
[1748446621524,1.78484314,107380.0,107370.0,0.60771974]
[1748446621819,1.78484314,107380.0,107370.0,0.62227546]
[1748446622025,1.78484314,107380.0,107370.0,0.63683118]
[1748446622924,1.78484314,107380.0,107370.0,0.62227546]
[1748446623127,1.78484314,107380.0,107370.0,0.62666143]
[1748446623429,1.78484314,107380.0,107370.0,0.63683154]
[1748446623818,1.78484314,107380.0,107370.0,0.63682751]
[1748446624020,1.78484314,107380.0,107370.0,0.79831191]
[1748446624219,1.78484314,107380.0,107370.0,0.82303371]
[1748446624626,1.78484314,107380.0,107370.0,0.82303383]
[1748446625026,1.78484314,107380.0,107370.0,0.82303362]
[1748446625225,1.78484314,107380.0,107370.0,0.83286763]
[1748446625624,1.78484314,107380.0,107370.0,0.84303331]
[1748446625926,1.78484314,107380.0,107370.0,0.84303333]
[1748446626132,1.78484314,107380.0,107370.0,0.87453323]
[1748446626632,1.79580171,107380.0,107370.0,0.90723323]
[1748446626827,1.34840736,107380.0,107370.0,1.12723323]
[1748446627128,1.70920736,107380.0,107370.0,1.12723323]
[1748446627523,1.15480501,107380.0,107370.0,1.12723237]
[1748446627730,1.15480501,107380.0,107370.0,1.12722617]
[1748446627731,1.26996766,107380.0,107370.0,1.12722617]
[1748446627934,1.65139088,107380.0,107370.0,1.12722617]
[1748446628133,1.65139088,107380.0,107370.0,1.12722557]
[1748446628325,1.65139088,107380.0,107370.0,1.10250571]
[1748446628633,1.65139088,107380.0,107370.0,1.12722546]
[1748446628931,1.65139088,107380.0,107370.0,1.14177978]
[1748446629125,1.65139088,107380.0,107370.0,1.08249997]
[1748446629324,1.65139088,107380.0,107370.0,1.08250004]
[1748446629723,1.65139088,107380.0,107370.0,1.0824999]
[1748446630234,1.65139088,107380.0,107370.0,1.14178051]
[1748446630531,1.65139088,107380.0,107370.0,1.15633501]
[1748446630732,1.65139088,107380.0,107370.0,1.15633502]
[1748446631232,1.65139088,107380.0,107370.0,1.11160954]
[1748446631430,1.65139088,107380.0,107370.0,1.17089335]
[1748446631628,1.65139088,107380.0,107370.0,1.17089355]
[1748446632030,1.60803201,107380.0,107370.0,1.17089354]
[1748446632424,1.60803201,107380.0,107370.0,1.15633902]
[1748446632630,1.65137292,107380.0,107370.0,1.17089351]
[1748446633334,1.7091897,107380.0,107370.0,1.17089351]
[1748446633534,1.7091897,107380.0,107370.0,1.14617283]
[1748446633730,1.7091897,107380.0,107370.0,1.15633935]
[1748446633931,1.7091897,107380.0,107370.0,1.17089393]
[1748446634137,1.7091897,107380.0,107370.0,1.17089421]
[1748446634332,1.7091897,107380.0,107370.0,1.0835718]
[1748446634528,1.7091897,107380.0,107370.0,1.02428798]
[1748446634724,1.65137292,107380.0,107370.0,1.02428798]
[1748446635034,1.60803201,107380.0,107370.0,1.02428799]
[1748446635223,1.6513707,107380.0,107370.0,1.02428799]
[1748446635421,1.6513707,107380.0,107370.0,1.02428794]
[1748446636235,1.6513707,107380.0,107370.0,1.00973375]
[1748446636536,1.65135917,107380.0,107370.0,1.02428851]
[1748446636836,1.65135917,107380.0,107370.0,1.01412109]
[1748446637134,1.65135917,107380.0,107370.0,1.07341316]
[1748446637322,1.65135917,107380.0,107370.0,1.08358091]
[1748446637521,1.70917595,107380.0,107370.0,0.87922936]
[1748446637835,1.70917595,107380.0,107370.0,0.63773267]
[1748446638342,1.66584879,107380.0,107370.0,0.63773267]
[1748446638631,1.66584879,107380.0,107370.0,0.63773423]
[1748446638944,1.79564503,107380.0,107370.0,0.65228969]
[1748446639122,1.75232314,107380.0,107370.0,0.63773417]
[1748446639326,1.75232314,107380.0,107370.0,0.6522897]
[1748446639730,1.75232314,107380.0,107370.0,0.70153417]
[1748446640038,1.75232314,107380.0,107370.0,0.71608961]
[1748446640225,1.75232314,107380.0,107370.0,0.7015339]
[1748446640430,1.75232314,107380.0,107370.0,0.70153432]
[1748446641331,1.75232314,107380.0,107370.0,0.70154801]
[1748446641531,1.75232314,107380.0,107370.0,0.74521435]
[1748446641743,1.79564331,107380.0,107370.0,0.74521435]
[1748446642033,1.79564331,107380.0,107370.0,0.73503215]
[1748446642244,1.70916896,107380.0,107370.0,0.73503215]
[1748446642541,1.66584879,107380.0,107370.0,0.74521417]
[1748446642837,1.66584879,107380.0,107370.0,0.74521438]
[1748446643333,1.69894879,107380.0,107370.0,0.73503215]
[1748446643542,1.69894879,107380.0,107370.0,0.73065906]
[1748446643734,1.69894879,107380.0,107370.0,0.75976962]
[1748446644237,1.69894879,107380.0,107370.0,0.74521509]
[1748446644429,1.78542314,107380.0,107370.0,0.74521509]
[1748446644634,1.78542314,107380.0,107370.0,0.73066036]
[1748446645234,1.78542314,107380.0,107370.0,0.71610514]
[1748446645541,1.78542314,107380.0,107370.0,0.7306618]
[1748446646243,1.78542314,107380.0,107370.0,0.74521728]
[1748446646437,1.78542314,107380.0,107370.0,0.73503317]
[1748446646741,1.78542314,107380.0,107370.0,0.74521755]
[1748446647138,1.78542314,107380.0,107370.0,0.74521766]
[1748446647535,1.34618314,107380.0,107370.0,0.74521766]
[1748446647732,1.78514314,107380.0,107370.0,0.74521766]
[1748446648341,1.78514314,107380.0,107370.0,0.69964398]
[1748446648342,1.97874579,107380.0,107370.0,0.69964398]
[1748446648539,1.97874579,107380.0,107370.0,0.69976398]
[1748446648843,1.72732636,107380.0,107370.0,0.69976008]
[1748446649045,1.72732636,107380.0,107370.0,0.74342738]
[1748446649261,1.92092901,107380.0,107370.0,0.71052738]
[1748446649536,1.92092901,107380.0,107370.0,0.12662684]
[1748446649744,0.1862062,107370.0,107360.0,0.07128274]
[1748446649939,1.3479115,107370.0,107360.0,0.07128274]
[1748446650133,1.3479115,107370.0,107360.0,0.07140274]
[1748446650332,1.3479115,107370.0,107360.0,0.13370274]
[1748446650535,1.43461119,107370.0,107360.0,0.13370274]
[1748446650751,1.43461119,107370.0,107360.0,0.06255952]
[1748446651444,1.43461119,107370.0,107360.0,0.06455952]
[1748446654147,1.04740589,107370.0,107360.0,0.03265952]
[1748446654447,1.43461119,107370.0,107360.0,0.03265952]
[1748446655444,1.79541119,107370.0,107360.0,0.03265952]
[1748446656145,1.79992674,107370.0,107360.0,0.03265952]
[1748446656846,1.79992674,107370.0,107360.0,0.06505952]
[1748446657436,2.23880674,107370.0,107360.0,0.06505952]
[1748446658037,1.57392409,107370.0,107360.0,0.25128312]
[1748446658233,1.45707259,107370.0,107360.0,0.26128312]
[1748446658441,2.13282605,107370.0,107360.0,0.29178312]
[1748446658641,2.07513521,107370.0,107360.0,0.29178312]
[1748446659043,1.88153256,107370.0,107360.0,0.10555952]
[1748446659239,2.07513521,107370.0,107360.0,0.10555952]
[1748446659439,1.63625521,107370.0,107360.0,0.29178312]
[1748446659638,2.07513521,107370.0,107360.0,0.30178312]
[1748446660042,2.0318644,107370.0,107360.0,0.30178312]
[1748446660347,2.0318644,107370.0,107360.0,0.11555952]
[1748446660648,2.07514027,107370.0,107360.0,0.11555952]
[1748446661843,2.07514027,107370.0,107360.0,0.12584536]
[1748446662644,2.07514027,107370.0,107360.0,0.12584646]
[1748446663042,2.07514027,107370.0,107360.0,0.12784646]
[1748446663443,2.13283111,107370.0,107360.0,0.12784646]
[1748446663647,2.13283111,107370.0,107360.0,0.11755952]
[1748446664349,2.13283363,107370.0,107360.0,0.12784765]
[1748446664550,2.13283363,107370.0,107360.0,0.31407168]
[1748446665142,2.13283363,107370.0,107360.0,0.12784818]
[1748446665643,2.13283363,107370.0,107360.0,0.11755952]
[1748446665844,2.13283363,107370.0,107360.0,0.12784896]
[1748446666147,2.13283363,107370.0,107360.0,0.31407256]
[1748446666355,1.58819363,107370.0,107360.0,0.31407256]
[1748446666543,1.90796279,107370.0,107360.0,0.31862904]
[1748446666742,1.90796279,107370.0,107360.0,0.56862904]
[1748446666945,1.90796279,107370.0,107360.0,0.55407377]
[1748446667454,0.74760279,107370.0,107360.0,0.56862021]
[1748446667642,0.32451555,107370.0,107360.0,1.47122138]
[1748446667839,0.32451555,107370.0,107360.0,0.96447873]
[1748446668039,0.7043244,107370.0,107360.0,1.01707258]
[1748446668251,0.7368244,107370.0,107360.0,2.51707258]
[1748446668456,0.7368244,107370.0,107360.0,2.51707189]
[1748446668756,0.7368244,107370.0,107360.0,0.63143613]
[1748446669056,0.7368244,107370.0,107360.0,0.60367644]
[1748446669257,0.7368244,107370.0,107360.0,0.60367622]
[1748446669555,0.7368244,107370.0,107360.0,0.60367625]
[1748446670058,0.7368244,107370.0,107360.0,0.60367594]
[1748446670250,0.54322175,107370.0,107360.0,0.96447597]
[1748446670556,0.54322175,107370.0,107360.0,0.60367596]
[1748446670949,0.54322175,107370.0,107360.0,0.6748187]
[1748446671446,0.54322175,107370.0,107360.0,0.72050011]
[1748446671652,0.54322175,107370.0,107360.0,0.67481855]
[1748446671849,0.54322175,107370.0,107360.0,0.67481856]
[1748446672047,0.54322175,107370.0,107360.0,0.720498]
[1748446672558,0.54322175,107370.0,107360.0,1.03561844]
[1748446672950,0.7368244,107370.0,107360.0,1.03561844]
[1748446673555,0.7368244,107370.0,107360.0,0.67481844]
[1748446673856,0.54322175,107370.0,107360.0,0.67481844]
[1748446674242,0.54322175,107370.0,107360.0,1.0356177]
[1748446674451,0.54322175,107370.0,107360.0,1.0107855]
[1748446674658,0.54322175,107370.0,107360.0,1.0356177]
[1748446674954,0.7368244,107370.0,107360.0,0.6748177]
[1748446675157,0.7686244,107370.0,107360.0,0.6748177]
[1748446675359,0.7686244,107370.0,107360.0,0.6746977]
[1748446675545,0.7686244,107370.0,107360.0,0.6748177]
[1748446675747,0.7686244,107370.0,107360.0,0.67481766]
[1748446676359,0.7686244,107370.0,107360.0,0.67481767]
[1748446676858,0.7686244,107370.0,107360.0,0.66026296]
[1748446677057,0.7686244,107370.0,107360.0,0.6499855]
[1748446677260,0.76425797,107370.0,107360.0,0.72048863]
[1748446678350,0.76425797,107370.0,107360.0,0.67481692]
[1748446678758,0.76425797,107370.0,107360.0,0.7204847]
[1748446679059,0.57065532,107370.0,107360.0,0.72036096]
[1748446679251,0.35264912,107370.0,107360.0,0.72036077]
[1748446679451,0.50635532,107370.0,107360.0,0.67469314]
[1748446679757,0.69995797,107370.0,107360.0,1.2254864]
[1748446679957,0.73005797,107370.0,107360.0,1.2254864]
[1748446680161,0.73005797,107370.0,107360.0,1.24004105]
[1748446680558,0.73005797,107370.0,107360.0,1.2007855]
[1748446680757,0.53645532,107370.0,107360.0,1.21093185]
[1748446680959,0.53645532,107370.0,107360.0,1.21093261]
[1748446681159,0.53645532,107370.0,107360.0,1.15434404]
[1748446681360,1.12335797,107370.0,107360.0,0.60720062]
[1748446681554,1.12335797,107370.0,107360.0,0.63418744]
[1748446681755,1.15635797,107370.0,107360.0,0.62404016]
[1748446681957,1.15635797,107370.0,107360.0,0.6135652]
[1748446682159,1.15635797,107370.0,107360.0,0.61368629]
[1748446682464,1.15635797,107370.0,107360.0,0.59913059]
[1748446682663,1.15635797,107370.0,107360.0,0.59913133]
[1748446683054,1.15635797,107370.0,107360.0,0.61368705]
[1748446683862,1.15635797,107370.0,107360.0,0.54254431]
[1748446684052,1.15635797,107370.0,107360.0,0.61368919]
[1748446684448,1.19964053,107370.0,107360.0,0.54254597]
[1748446684861,1.19964053,107370.0,107360.0,0.54254639]
[1748446685257,1.19964053,107370.0,107360.0,0.53239436]
[1748446685460,1.19964053,107370.0,107360.0,0.54254679]
[1748446686057,1.19964053,107370.0,107360.0,0.51783862]
[1748446686266,1.19964053,107370.0,107360.0,0.15632495]
[1748446686569,1.19964053,107370.0,107360.0,0.31002897]
[1748446686764,1.19964053,107370.0,107360.0,0.29559323]
[1748446686958,1.19964053,107370.0,107360.0,0.34282917]
[1748446687163,1.19964053,107370.0,107360.0,0.29282917]
[1748446687466,1.25733137,107370.0,107360.0,0.52295183]
[1748446687675,1.25738053,107370.0,107360.0,0.52295183]
[1748446687968,1.25738053,107370.0,107360.0,0.33672823]
[1748446688151,1.25738053,107370.0,107360.0,0.3184842]
[1748446688356,1.25738053,107370.0,107360.0,0.3183642]
[1748446688556,1.25738053,107370.0,107360.0,0.09937518]
[1748446689057,1.25738053,107370.0,107360.0,0.28559878]
[1748446689257,1.25738053,107370.0,107360.0,0.31809878]
[1748446689458,1.25738053,107370.0,107360.0,0.19558047]
[1748446689659,1.25738053,107370.0,107360.0,0.21013644]